bitfinex-derivatives/quotes_SOLF0:USTF0_20240816
["timestamp","ask_amount","ask_price","bid_price","bid_amount"]
[1723776256713,0.04802087,142.92,142.89,2.4957033]
[1723776256907,0.04802087,142.92,142.89,0.0467033]
[1723776257410,0.04802087,142.92,142.9,2.4487]
[1723776257603,0.04802087,142.92,142.89,0.0467033]
[1723776258212,0.04802087,142.92,142.91,2.4487]
[1723776259010,7.9134,143.0,142.91,33.53]
[1723776259217,6.6659,143.0,142.91,33.53]
[1723776259413,1.2546,143.03,142.97,2.4476]
[1723776260016,2.447,143.01,142.91,33.6426]
[1723776260217,2.49245722,143.01,142.99,0.04838782]
[1723776260413,2.4468,143.02,142.94,33.53]
[1723776260613,0.05288137,143.01,142.99,0.04699317]
[1723776262014,2.49988137,143.01,142.99,0.04699317]
[1723776262217,0.05288137,143.01,142.99,0.04699317]
[1723776262621,0.05288137,143.01,142.99,2.49429317]
[1723776263414,0.05288137,143.01,143.0,2.4472]
[1723776263618,0.05288137,143.01,142.99,0.04699317]
[1723776264012,0.05288137,143.01,142.99,2.49429317]
[1723776264214,0.05288137,143.01,142.99,0.04699317]
[1723776264519,2.4472,143.0,142.99,0.04699317]
[1723776265420,2.49988137,143.01,142.99,0.04699317]
[1723776265623,0.05288137,143.01,142.99,0.04699317]
[1723776268821,2.49988137,143.01,142.99,0.04699317]
[1723776269018,0.05288137,143.01,142.99,0.04699317]
[1723776271119,2.49988137,143.01,142.99,0.04699317]
[1723776272423,2.4472,143.0,142.99,0.04699317]
[1723776272926,2.49988137,143.01,142.99,0.04699317]
[1723776275024,2.4472,143.0,142.99,0.04699317]
[1723776276234,2.49988137,143.01,142.99,0.04699317]
[1723776280330,0.05288137,143.01,142.99,0.04699317]
[1723776284334,0.05288137,143.01,143.0,2.4472]
[1723776284631,5.26,143.11,143.0,26.86]
[1723776284930,27.98,143.16,143.04,26.86]
[1723776284931,3.57446769,143.1,143.04,26.86]
[1723776285128,2.4637,143.12,143.04,26.86]
[1723776285729,0.0505284,143.09,143.07,0.04932848]
[1723776286226,2.4458,143.08,143.07,0.04932848]
[1723776289132,2.4463,143.05,143.04,3.5137006]
[1723776289534,26.86,143.05,142.96,5.26]
[1723776290038,26.86,143.05,142.97,2.4476]
[1723776290227,0.04689046,143.02,142.99,0.04603645]
[1723776291032,0.04689046,143.02,142.99,30.42358175]
[1723776291237,0.04689046,143.02,142.99,35.68358175]
[1723776291433,0.04689046,143.02,143.0,2.4472]
[1723776291637,0.04689046,143.02,142.99,35.68358175]
[1723776292739,0.04689046,143.02,143.01,2.447]
[1723776293738,2.446,143.07,143.03,2.4466]
[1723776294736,2.4459,143.08,143.03,2.4466]
[1723776295136,0.04917711,143.06,143.04,2.49678862]
[1723776295740,0.04917711,143.06,143.04,0.05038862]
[1723776299337,0.04917711,143.06,143.04,2.49688862]
[1723776300244,0.04917711,143.06,143.04,0.05038862]
[1723776300543,0.04917711,143.06,143.04,26.91038862]
[1723776300842,1.3196,143.15,143.05,26.86]
[1723776301038,1.3196,143.15,143.08,26.86]
[1723776301244,1.3196,143.15,143.08,30.36587054]
[1723776301443,1.3196,143.15,143.08,32.81147054]
[1723776301640,1.3196,143.15,143.08,29.3056]
[1723776301840,0.04483287,143.13,143.1,0.04827623]
[1723776302834,0.04483287,143.13,143.03,2.4466]
[1723776302835,26.86,143.11,143.03,2.4466]
[1723776303042,2.4459,143.08,143.0,33.3945]
[1723776303342,2.4459,143.08,143.04,2.4465]
[1723776303546,2.4454,143.11,143.02,26.86]
[1723776303749,6.5573,143.12,143.05,26.86]
[1723776303948,0.04976013,143.08,143.06,5.26]
[1723776304247,1.3196,143.15,143.06,5.26]
[1723776304248,1.3196,143.15,143.07,26.86]
[1723776304544,5.26,143.17,143.1,26.86]
[1723776304752,2.4445,143.16,143.1,26.86]
[1723776304944,1.3023,143.19,143.12,26.86]
[1723776305338,0.04608705,143.17,143.14,0.05126454]
[1723776305743,2.49038705,143.17,143.14,0.05126454]
[1723776305941,0.04608705,143.17,143.14,0.05126454]
[1723776307838,2.49048705,143.17,143.14,0.05126454]
[1723776308046,0.04608705,143.17,143.14,0.05126454]
[1723776308548,2.49038705,143.17,143.14,0.05126454]
[1723776308844,0.04608705,143.17,143.14,0.05126454]
[1723776309749,2.4446,143.15,143.14,0.05126454]
[1723776310144,0.04608705,143.17,143.14,0.05126454]
[1723776310449,0.04608705,143.17,143.14,33.60126454]
[1723776310843,0.04608705,143.17,143.14,0.05126454]
[1723776312347,0.04608705,143.17,143.14,2.49596454]
[1723776312545,0.04608705,143.17,143.14,33.60126454]
[1723776312942,0.04608705,143.17,143.16,2.4444]
[1723776315154,0.04608705,143.17,143.14,33.60126454]
[1723776315346,0.04608705,143.17,143.14,0.05126454]
[1723776315542,2.49048705,143.17,143.14,0.05126454]
[1723776316047,2.4446,143.15,143.14,0.05126454]
[1723776316352,0.04608705,143.17,143.14,0.05126454]
[1723776317253,0.04608705,143.17,143.16,35.9944]
[1723776317447,1.3005,143.24,143.16,33.55]
[1723776317745,2.5708,143.27,143.2,2.4437]
[1723776317945,2.5708,143.27,143.19,33.55]
[1723776318254,5.28,143.28,143.21,33.55]
[1723776318460,5.28,143.28,143.23,33.55]
[1723776318657,0.04475687,143.26,143.23,0.05057875]
[1723776318948,3.827,143.33,143.26,33.55]
[1723776319850,0.05141503,143.31,143.28,0.05364671]
[1723776320056,2.4422,143.29,143.24,35.993]
[1723776320549,2.4422,143.29,143.28,0.05010335]
[1723776320753,2.4422,143.29,143.24,35.993]
[1723776320950,2.4422,143.29,143.27,0.04952674]
[1723776321551,2.4424,143.28,143.27,0.04952674]
[1723776322551,2.4422,143.29,143.27,0.04952674]
[1723776322753,0.0460975,143.3,143.27,0.04952674]
[1723776323354,0.0460975,143.3,143.27,2.49192674]
[1723776323750,0.0460975,143.3,143.28,2.4423]
[1723776324054,0.0460975,143.3,143.28,33.55]
[1723776324253,6.6265,143.38,143.28,33.55]
[1723776324450,6.6265,143.38,143.31,33.55]
[1723776324451,1.3465,143.38,143.31,33.55]
[1723776324851,2.441,143.37,143.32,2.4416]
[1723776325152,1.3465,143.38,143.29,33.55]
[1723776325355,1.3465,143.38,143.25,2.5769]
[1723776325356,33.55,143.37,143.26,5.28]
[1723776325547,2.4417,143.33,143.32,0.05138191]
[1723776327250,2.4415,143.34,143.32,0.05138191]
[1723776327455,0.04689968,143.35,143.32,0.05138191]
[1723776328950,0.04689968,143.35,143.32,33.60138191]
[1723776329356,0.04689968,143.35,143.32,0.05138191]
[1723776330058,2.48819968,143.35,143.32,0.05138191]
[1723776330255,0.04689968,143.35,143.32,0.05138191]
[1723776330759,2.48819968,143.35,143.32,0.05138191]
[1723776330959,0.04689968,143.35,143.32,0.05138191]
[1723776331962,0.04689968,143.35,143.32,33.60138191]
[1723776332463,0.04689968,143.35,143.32,0.05138191]
[1723776333956,0.04689968,143.35,143.33,33.55]
[1723776334762,0.04689968,143.35,143.34,2.4414]
[1723776335349,0.04689968,143.35,143.34,35.9914]
[1723776338964,1.3103,143.41,143.37,2.4407]
[1723776338965,3.7505,143.41,143.37,2.4407]
[1723776339653,1.3331,143.42,143.37,33.55]
[1723776339654,2.44,143.42,143.37,33.55]
[1723776340062,0.05323115,143.41,143.38,0.04438511]
[1723776340460,0.05323115,143.41,143.39,33.55]
[1723776341059,0.05323115,143.41,143.38,0.04438511]
[1723776341466,2.49343115,143.41,143.38,0.04438511]
[1723776341657,0.05323115,143.41,143.38,0.04438511]
[1723776341864,0.05323115,143.41,143.39,33.55]
[1723776342064,0.05323115,143.41,143.4,2.4403]
[1723776342258,0.05323115,143.41,143.39,33.55]
[1723776342660,0.05323115,143.41,143.4,2.4403]
[1723776344163,0.05323115,143.41,143.38,2.48488511]
[1723776344364,0.05323115,143.41,143.38,0.04438511]
[1723776344768,0.05323115,143.41,143.39,2.4405]
[1723776344961,0.05323115,143.41,143.38,0.04438511]
[1723776346063,2.4405,143.4,143.38,0.04438511]
[1723776346873,0.05323115,143.41,143.38,0.04438511]
[1723776347168,0.05323115,143.41,143.38,26.82438511]
[1723776347369,0.05323115,143.41,143.4,29.2203]
[1723776347566,1.3271,143.45,143.42,26.78]
[1723776348064,1.3271,143.45,143.41,33.45]
[1723776348471,3.7667,143.45,143.41,33.45]
[1723776348666,0.05267924,143.44,143.42,0.04749709]
[1723776348964,2.49237924,143.44,143.42,0.04749709]
[1723776349274,0.05267924,143.44,143.42,0.04749709]
[1723776349663,2.4398,143.43,143.42,0.04749709]
[1723776352573,2.49237924,143.44,143.42,0.04749709]
[1723776353171,2.4398,143.43,143.42,0.04749709]
[1723776355474,0.05267924,143.44,143.42,0.04749709]
[1723776355868,2.4398,143.43,143.42,0.04749709]
[1723776356589,0.05267924,143.44,143.36,33.45]
[1723776356590,2.4403,143.41,143.36,33.45]
[1723776357286,2.4403,143.41,143.37,2.4407]
[1723776357789,0.05090524,143.4,143.38,0.0536122]
[1723776358184,2.4405,143.39,143.38,0.0536122]
[1723776358780,3.6814,143.39,143.38,0.0536122]
[1723776359979,2.441,143.36,143.32,35.8916]
[1723776360883,1.2409,143.39,143.33,2.4415]
[1723776361089,0.04721744,143.35,143.34,33.45]
[1723776361288,1.2409,143.39,143.34,33.45]
[1723776361489,5.3,143.42,143.36,35.891]
[1723776362390,5.3,143.42,143.36,33.45]
[1723776362587,5.3,143.42,143.38,0.04596297]
[1723776362588,0.04852897,143.4,143.38,0.04596297]
[1723776362887,3.46749832,143.4,143.3,33.45]
[1723776363093,2.4415,143.34,143.3,33.45]
[1723776363592,2.4412,143.35,143.3,35.892]
[1723776364091,0.05017659,143.34,143.31,0.04919146]
[1723776364892,2.4415,143.33,143.31,0.04919146]
[1723776365785,2.4417,143.32,143.31,0.04919146]
[1723776366692,0.05017659,143.34,143.31,0.04919146]
[1723776366893,0.05017659,143.34,143.32,33.45]
[1723776367093,0.05017659,143.34,143.32,35.8916]
[1723776368396,0.05017659,143.34,143.33,2.4415]
[1723776369197,0.05017659,143.34,143.32,33.45]
[1723776369797,0.05017659,143.34,143.32,35.8916]
[1723776370092,0.05017659,143.34,143.32,33.45]
[1723776371795,0.05017659,143.34,143.31,0.04919146]
[1723776377298,0.05017659,143.34,143.33,33.45]
[1723776378003,0.05017659,143.34,143.31,26.84919146]
[1723776378504,0.05017659,143.34,143.31,0.04919146]
[1723776378801,0.05017659,143.34,143.31,26.84919146]
[1723776380202,0.05017659,143.34,143.31,29.29109146]
[1723776380605,0.05017659,143.34,143.31,26.84919146]
[1723776381600,0.05017659,143.34,143.31,0.04919146]
[1723776382902,0.05017659,143.34,143.19,1.2335]
[1723776383206,1.3235,143.36,143.25,26.8]
[1723776383407,6.5835,143.36,143.3,26.8]
[1723776383908,6.5835,143.36,143.31,2.4418]
[1723776384206,0.0491494,143.34,143.32,0.05031623]
[1723776384600,0.0491494,143.34,143.33,2.4415]
[1723776386907,0.0491494,143.34,143.32,0.05031623]
[1723776388811,0.0491494,143.34,143.32,2.49201623]
[1723776390410,0.0491494,143.34,143.33,2.4415]
[1723776392119,1.2502,143.42,143.38,2.4405]
[1723776392416,1.2682,143.43,143.38,35.9305]
[1723776392608,5.26,143.46,143.38,35.9305]
[1723776393216,0.04831801,143.43,143.41,0.04772803]
[1723776393514,2.48821801,143.43,143.41,0.04772803]
[1723776393910,0.04831801,143.43,143.41,0.04772803]
[1723776394112,2.44,143.42,143.41,0.04772803]
[1723776394307,0.04831801,143.43,143.34,33.49]
[1723776394509,33.49,143.45,143.34,33.49]
[1723776394716,2.4402,143.41,143.36,2.441]
[1723776395013,33.49,143.45,143.34,33.49]
[1723776395210,33.49,143.45,143.38,0.04478763]
[1723776395412,0.05345676,143.41,143.38,0.04478763]
[1723776395917,3.43192518,143.4,143.32,33.49]
[1723776396211,1.2196,143.39,143.32,33.49]
[1723776396613,2.441,143.36,143.32,33.49]
[1723776396814,1.2196,143.39,143.29,38.75]
[1723776397308,1.2196,143.39,143.33,0.0443388]
[1723776397309,0.04458286,143.35,143.33,0.0443388]
[1723776398614,2.48578286,143.35,143.33,0.0443388]
[1723776400109,0.04458286,143.35,143.33,0.0443388]
[1723776400314,0.04458286,143.35,143.34,2.4414]
[1723776400517,0.04458286,143.35,143.34,35.9314]
[1723776400719,35.9461,143.47,143.34,33.49]
[1723776400912,5.516291,143.46,143.37,2.4407]
[1723776401113,3.76498758,143.45,143.37,2.4407]
[1723776401320,3.48869658,143.45,143.37,2.4407]
[1723776401519,6.4847,143.46,143.37,2.4407]
[1723776401919,0.04627957,143.43,143.4,0.04852185]
[1723776402723,2.4402,143.41,143.4,0.04852185]
[1723776402923,0.04627957,143.43,143.34,33.49]
[1723776403119,37.00307471,143.45,143.34,33.49]
[1723776403319,37.00307471,143.45,143.34,35.9313]
[1723776404026,2.4406,143.39,143.34,35.9313]
[1723776404626,0.04760917,143.38,143.35,0.05371169]
[1723776404920,2.48830917,143.38,143.35,0.05371169]
[1723776405320,0.04760917,143.38,143.35,2.49491169]
[1723776405920,0.04760917,143.38,143.35,0.05371169]
[1723776406322,0.04760917,143.38,143.27,1.2455]
[1723776406323,3.49902099,143.37,143.27,34.7355]
[1723776406627,2.4418,143.32,143.27,33.49]
[1723776407021,2.4418,143.32,143.27,35.9325]
[1723776407524,0.04649286,143.31,143.28,0.04689735]
[1723776408821,0.04649286,143.31,143.28,2.48919735]
[1723776409026,0.04649286,143.31,143.28,0.04689735]
[1723776409329,5.24,143.37,143.33,2.4415]
[1723776409521,7.681,143.37,143.32,33.49]
[1723776409723,5.24,143.37,143.32,33.49]
[1723776410024,2.441,143.36,143.32,35.9316]
[1723776410224,5.24,143.37,143.32,33.49]
[1723776410426,0.04876704,143.36,143.33,0.04703873]
[1723776411324,2.4414,143.34,143.33,0.04703873]
[1723776414726,2.4419,143.31,143.27,2.4425]
[1723776415431,5.96488325,143.36,143.24,38.73]
[1723776415626,33.49,143.34,143.24,33.49]
[1723776415826,0.04652417,143.3,143.28,0.0451905]
[1723776416027,2.48872417,143.3,143.28,0.0451905]
[1723776418435,0.04652417,143.3,143.28,0.0451905]
[1723776419038,2.4422,143.29,143.28,0.0451905]
[1723776422137,2.4422,143.29,143.19,1.3023]
[1723776422138,1.2193,143.29,143.19,33.49]
[1723776422442,5.24,143.28,143.19,33.49]
[1723776422630,3.55695392,143.27,143.19,35.9338]
[1723776422835,33.49,143.27,143.17,33.49]
[1723776423031,4.70048842,143.26,143.17,33.49]
[1723776423230,2.4435,143.22,143.21,0.05373725]
[1723776424540,0.04991601,143.23,143.12,2.6057]
[1723776424737,5.24,143.22,143.12,36.0957]
[1723776424935,1.336,143.21,143.12,34.8386]
[1723776425239,34.826,143.21,143.1,100.59895794]
[1723776425539,1.2826,143.2,143.1,103.04435794]
[1723776425840,0.04577309,143.17,143.14,0.05217206]
[1723776426041,5.24,143.16,143.14,0.05217206]
[1723776426237,2.4446,143.15,143.14,0.05217206]
[1723776427036,8.79320736,143.16,143.06,33.49]
[1723776427037,42.28320736,143.16,143.06,33.49]
[1723776427245,33.49,143.14,143.03,33.49]
[1723776427640,1.2826,143.13,143.03,33.49]
[1723776427841,2.4454,143.11,143.06,2.4461]
[1723776428145,0.04862214,143.1,143.07,0.04640087]
[1723776430441,0.04862214,143.1,143.08,2.4457]
[1723776430745,0.04862214,143.1,143.07,0.04640087]
[1723776431547,2.49412214,143.1,143.07,0.04640087]
[1723776431747,0.04862214,143.1,143.07,0.04640087]
[1723776433539,0.04862214,143.1,143.08,2.4457]
[1723776433943,0.04862214,143.1,143.07,2.49220087]
[1723776434139,0.04862214,143.1,143.07,0.04640087]
[1723776434548,0.04862214,143.1,143.09,2.4456]
[1723776434848,0.04862214,143.1,143.07,0.04640087]
[1723776434849,5.26,143.18,143.08,33.49]
[1723776435043,2.444,143.19,143.15,2.4446]
[1723776435244,9.1468,143.21,143.15,2.4446]
[1723776435552,9.1468,143.21,143.13,33.49]
[1723776435553,11.5904,143.21,143.16,2.4443]
[1723776435752,9.1468,143.21,143.13,33.49]
[1723776436048,2.4441,143.19,143.17,0.04622967]
[1723776436348,0.05084058,143.2,143.17,0.04622967]
[1723776436743,2.4441,143.18,143.17,0.04622967]
[1723776438753,0.05084058,143.2,143.17,0.04622967]
[1723776439152,2.4439,143.19,143.17,0.04622967]
[1723776439553,0.05084058,143.2,143.17,0.04622967]
[1723776440059,2.4441,143.18,143.17,0.04622967]
[1723776440761,2.4446,143.16,143.11,5.26]
[1723776440953,2.4446,143.16,143.09,34.7551]
[1723776441154,33.49,143.19,143.09,34.7551]
[1723776441758,33.49,143.19,143.11,2.4452]
[1723776441959,0.05090725,143.15,143.13,0.04517914]
[1723776443861,2.4448,143.14,143.13,0.04517914]
[1723776444257,3.7172,143.14,143.13,0.04517914]
[1723776444664,3.7172,143.14,143.04,38.75]
[1723776444665,2.4452,143.12,143.06,2.4461]
[1723776444865,2.4452,143.12,143.04,38.75]
[1723776445560,2.4452,143.12,143.07,2.4458]
[1723776445864,0.04643624,143.11,143.08,0.04962624]
[1723776447166,0.04643624,143.11,143.08,2.49532624]
[1723776447358,0.04643624,143.11,143.08,0.04962624]
[1723776448370,0.04643624,143.11,143.08,2.49532624]
[1723776449270,0.04643624,143.11,143.08,0.04962624]
[1723776450374,2.49173624,143.11,143.08,0.04962624]
[1723776450973,2.4455,143.1,143.08,0.04962624]
[1723776451775,2.4456,143.09,143.08,0.04962624]
[1723776453171,5.30643624,143.11,143.08,0.04962624]
[1723776453570,0.04643624,143.11,143.08,0.04962624]
[1723776453770,0.04643624,143.11,143.08,2.49542624]
[1723776453974,0.04643624,143.11,143.08,0.04962624]
[1723776455878,0.04643624,143.11,143.09,2.4456]
[1723776456075,0.04643624,143.11,143.08,0.04962624]
[1723776456682,2.4455,143.1,143.08,0.04962624]
[1723776456879,0.04643624,143.11,143.08,0.04962624]
[1723776457083,2.4456,143.09,143.08,0.04962624]
[1723776458978,2.4463,143.06,142.99,33.49]
[1723776459379,2.4463,143.06,143.01,2.4469]
[1723776460287,0.04906055,143.05,143.02,0.0451485]
[1723776460779,2.49536055,143.05,143.02,0.0451485]
[1723776461175,0.04906055,143.05,143.02,0.0451485]
[1723776461376,2.4466,143.03,143.02,0.0451485]
[1723776463986,2.4474,142.99,142.91,33.49]
[1723776464288,5.26,143.01,142.91,33.49]
[1723776464482,2.4472,143.0,142.91,33.49]
[1723776464685,5.26,143.01,142.91,33.49]
[1723776465081,0.05241699,142.97,142.91,33.49]
[1723776465786,0.05241699,142.97,142.76,4.9024]
[1723776466083,5.26,142.96,142.88,33.49]
[1723776466277,2.4476,142.98,142.91,33.49]
[1723776466479,0.05306588,142.96,142.9,2.4488]
[1723776466787,2.448,142.95,142.9,2.4488]
[1723776466982,0.05306588,142.96,142.89,3.7253]
[1723776467186,0.05306588,142.96,142.89,1.2763]
[1723776468691,33.54306588,142.96,142.86,1.2185]
[1723776468883,36.0687,142.96,142.86,1.2185]
[1723776469187,0.04490474,142.92,142.85,3.7209]
[1723776469392,5.30490474,142.92,142.85,3.7209]
[1723776469896,5.30490474,142.92,142.85,1.2712]
[1723776470095,2.4492,142.89,142.85,1.2712]
[1723776470483,0.05173323,142.88,142.85,3.7209]
[1723776470887,2.50113323,142.88,142.83,2.45]
[1723776471090,0.05173323,142.88,142.82,37.4166]
[1723776472490,2.50103323,142.88,142.82,37.4166]
[1723776473092,2.50103323,142.88,142.83,2.45]
[1723776473686,0.05173323,142.88,142.82,6.3768]
[1723776473886,0.05173323,142.88,142.81,5.26]
[1723776474079,0.05173323,142.88,142.78,1.351]
[1723776474285,0.05005255,142.84,142.81,2.4503]
[1723776475081,2.49995255,142.84,142.8,2.4505]
[1723776475486,0.05005255,142.84,142.78,1.351]
[1723776475885,0.05005255,142.84,142.73,38.75]
[1723776476085,2.4505,142.81,142.76,2.4511]
[1723776476292,36.0106,142.86,142.76,2.4511]
[1723776476293,5.26,142.82,142.76,2.4511]
[1723776476492,0.04837222,142.8,142.76,2.4511]
[1723776476792,2.49907222,142.8,142.75,2.4513]
[1723776477093,0.04837222,142.8,142.73,38.75]
[1723776477589,0.04837222,142.8,142.74,2.4516]
[1723776477993,2.4508,142.79,142.74,2.4516]
[1723776478288,2.4508,142.79,142.75,2.4514]
[1723776478882,0.04837222,142.8,142.76,2.4512]
[1723776479085,0.04837222,142.8,142.73,33.49]
[1723776479294,0.04837222,142.8,142.75,33.49]
[1723776479495,0.04837222,142.8,142.78,2.4509]
[1723776480490,0.04837222,142.8,142.79,2.4508]
[1723776480692,2.5206,142.86,142.77,34.7947]
[1723776480991,2.5206,142.86,142.8,2.4505]
[1723776481186,6.543,142.88,142.8,2.4505]
[1723776481602,2.4499,142.85,142.8,2.4505]
[1723776481787,0.04958066,142.85,142.83,0.05158846]
[1723776481993,0.04958066,142.85,142.79,2.4507]
[1723776482290,0.04958066,142.85,142.83,0.04818266]
[1723776482490,2.45,142.84,142.83,0.04818266]
[1723776484197,3.7149,142.84,142.83,0.04818266]
[1723776485300,2.49938066,142.85,142.83,0.04818266]
[1723776485595,0.04958066,142.85,142.83,0.04818266]
[1723776489393,2.49928066,142.85,142.83,0.04818266]
[1723776490000,0.04958066,142.85,142.83,0.04818266]
[1723776490892,0.04958066,142.85,142.74,1.2496]
[1723776490893,37.02859004,142.85,142.74,1.2496]
[1723776491089,33.49,142.83,142.74,1.2496]
[1723776491296,5.26,142.82,142.74,1.2496]
[1723776491491,2.4506,142.8,142.75,2.4514]
[1723776492202,33.49,142.83,142.74,1.2496]
[1723776492203,0.05283798,142.79,142.76,2.4513]
[1723776492401,0.05283798,142.79,142.74,1.2496]
[1723776492599,0.05283798,142.79,142.7,1.2311]
[1723776492797,2.4509,142.79,142.71,34.7665]
[1723776493002,38.75,142.82,142.71,34.7665]
[1723776493301,0.0517492,142.76,142.72,5.26]
[1723776493499,0.0517492,142.76,142.74,33.49]
[1723776493796,2.4504,142.82,142.77,2.451]
[1723776494001,36.0721,142.87,142.75,1.3298]
[1723776494202,2.5821,142.87,142.76,34.7826]
[1723776494396,0.05200497,142.81,142.76,34.7826]
[1723776494596,5.26,142.89,142.81,2.4503]
[1723776495102,5.26,142.89,142.76,34.7826]
[1723776495302,8.72841188,142.89,142.8,2.4505]
[1723776495703,0.05296719,142.85,142.83,0.04726564]
[1723776496098,2.50266719,142.85,142.83,0.04726564]
[1723776496497,0.05296719,142.85,142.83,2.49726564]
[1723776496700,0.05296719,142.85,142.83,0.04726564]
[1723776497802,2.4499,142.84,142.83,0.04726564]
[1723776498008,0.05296719,142.85,142.83,0.04726564]
[1723776498404,2.50276719,142.85,142.83,0.04726564]
[1723776498611,0.05296719,142.85,142.83,0.04726564]
[1723776499303,2.50276719,142.85,142.83,0.04726564]
[1723776499608,0.05296719,142.85,142.83,0.04726564]
[1723776500907,33.49,142.93,142.83,33.49]
[1723776500908,2.4488,142.91,142.83,33.49]
[1723776501103,41.4478,142.93,142.87,2.4493]
[1723776501305,41.4478,142.93,142.83,33.49]
[1723776501501,2.4487,142.91,142.83,33.49]
[1723776501900,6.6117,142.93,142.83,33.49]
[1723776502100,0.05369685,142.88,142.86,0.04808058]
[1723776502407,9.0601,142.93,142.87,2.4493]
[1723776502408,1.3517,142.93,142.87,2.4493]
[1723776502610,2.4487,142.91,142.87,2.4493]
[1723776502812,2.49330187,142.91,142.87,2.4493]
[1723776503007,0.04460187,142.91,142.86,0.04808058]
[1723776503204,0.04460187,142.91,142.88,33.49]
[1723776503603,0.04460187,142.91,142.89,2.449]
[1723776503804,0.04460187,142.91,142.87,5.26]
[1723776504104,0.04460187,142.91,142.9,2.4489]
[1723776504307,5.26,142.97,142.9,33.49]
[1723776504504,5.26,142.97,142.87,38.75]
[1723776504705,2.4481,142.95,142.9,2.4489]
[1723776505004,5.26,142.97,142.87,38.75]
[1723776505211,2.448,142.95,142.91,2.4487]
[1723776505509,0.05039951,142.93,142.91,2.49567178]
[1723776507413,0.05039951,142.93,142.91,0.04697178]
[1723776507910,2.4485,142.92,142.91,0.04697178]
[1723776508411,2.49879951,142.93,142.91,0.04697178]
[1723776508710,0.05039951,142.93,142.91,0.04697178]
[1723776510213,0.05039951,142.93,142.92,2.4485]
[1723776511603,1.347,142.99,142.94,2.4481]
[1723776511803,1.347,142.99,142.92,33.49]
[1723776512011,1.347,142.99,142.9,33.49]
[1723776512209,34.837,142.99,142.89,1.2981]
[1723776512414,2.4485,142.93,142.87,5.26]
[1723776512608,5.26,142.95,142.9,2.4488]
[1723776512907,0.04752831,142.94,142.9,2.4488]
[1723776513102,2.49582831,142.94,142.9,2.4488]
[1723776513520,2.49582831,142.94,142.91,2.4487]
[1723776513521,0.04752831,142.94,142.91,2.4487]
[1723776513711,0.04752831,142.94,142.89,0.05035819]
[1723776514013,0.04752831,142.94,142.91,2.4486]
[1723776514713,0.04752831,142.94,142.92,2.4485]
[1723776515107,37.10909205,142.94,142.89,0.05035819]
[1723776515307,1.3095,142.93,142.89,0.05035819]
[1723776515502,2.4489,142.9,142.89,0.05035819]
[1723776515908,33.49,142.9,142.8,33.49]
[1723776516211,2.4495,142.87,142.8,33.49]
[1723776516713,2.4495,142.87,142.83,2.45]
[1723776517213,0.05154314,142.86,142.84,0.04452058]
[1723776517407,0.04460502,142.86,142.85,2.4497]
[1723776518814,0.04460502,142.86,142.84,0.04452058]
[1723776519317,0.04460502,142.86,142.84,2.49442058]
[1723776519613,0.04460502,142.86,142.84,0.04452058]
[1723776522120,0.04460502,142.86,142.85,2.4497]
[1723776522414,0.04460502,142.86,142.84,0.04452058]
[1723776523611,2.49430502,142.86,142.84,0.04452058]
[1723776523808,0.04460502,142.86,142.84,0.04452058]
[1723776524012,0.04460502,142.86,142.78,5.26]
[1723776524209,2.4502,142.83,142.79,2.4507]
[1723776524416,2.5942,142.85,142.78,33.49]
[1723776524618,7.9142,142.85,142.78,33.49]
[1723776524809,2.4499,142.84,142.8,2.4506]
[1723776525216,0.0473913,142.83,142.81,0.04950527]
[1723776526819,2.4974913,142.83,142.81,0.04950527]
[1723776527016,0.0473913,142.83,142.81,0.04950527]
[1723776529120,0.0473913,142.83,142.81,2.49990527]
[1723776529317,5.32,142.85,142.81,33.53950527]
[1723776529520,2.5639,142.93,142.83,33.49]
[1723776529821,1.303,142.92,142.83,36.9868495]
[1723776530022,1.303,142.92,142.83,33.49]
[1723776530514,0.04432294,142.89,142.86,0.05265587]
[1723776531823,0.04432294,142.89,142.87,2.4494]
[1723776533119,0.04432294,142.89,142.88,2.4492]